bitfinex/quotes_BTCUSD_20220212
["timestamp","ask_amount","ask_price","bid_price","bid_amount"]
[1644669668501,0.00025435,42319.0,42318.0,0.19343199]
[1644669668798,0.00035435,42320.0,42318.0,0.19343199]
[1644669669000,0.00025435,42320.0,42318.0,0.19343199]
[1644669669198,0.00035435,42321.0,42318.0,0.19343199]
[1644669669398,0.0001,42321.0,42318.0,0.19343199]
[1644669669657,0.00035435,42321.0,42318.0,0.19343199]
[1644669669852,0.0001,42321.0,42318.0,0.19343199]
[1644669670057,0.00035435,42321.0,42318.0,0.19343199]
[1644669670252,0.0001,42321.0,42318.0,0.19343199]
[1644669670460,0.0001,42321.0,42320.0,0.333529]
[1644669670461,0.00025435,42321.0,42320.0,0.333529]
[1644669670655,0.00025435,42323.0,42319.0,0.059088]
[1644669670953,0.05522825,42339.0,42318.0,0.28572199]
[1644669670954,0.00025435,42321.0,42318.0,0.28572199]
[1644669671153,0.00027129,42322.0,42318.0,0.28572199]
[1644669671354,0.00025435,42321.0,42318.0,0.48212499]
[1644669671552,0.00027129,42322.0,42318.0,0.28572199]
[1644669671758,0.00027129,42322.0,42316.0,0.124]
[1644669671759,0.00025435,42321.0,42316.0,0.124]
[1644669671954,0.059108,42326.0,42316.0,0.124]
[1644669672159,0.00025435,42321.0,42316.0,0.124]
[1644669672353,0.0001,42325.0,42316.0,0.124]
[1644669672354,0.00027129,42322.0,42316.0,0.124]
[1644669673054,0.00035435,42325.0,42316.0,0.124]
[1644669673294,0.00048543,42321.0,42316.0,0.124]
[1644669673897,0.00469866,42321.0,42320.0,0.00166068]
[1644669674095,0.00495301,42321.0,42320.0,0.00166068]
[1644669674296,0.00421323,42321.0,42320.0,0.00166068]
[1644669678153,0.00421323,42321.0,42320.0,0.01166068]
[1644669678952,0.00025435,42322.0,42320.0,0.01166068]
[1644669679153,0.00361134,42324.0,42320.0,0.01166068]
[1644669679352,0.00025435,42322.0,42320.0,0.01166068]
[1644669679551,0.00048542,42323.0,42320.0,0.01166068]
[1644669679755,0.00025435,42322.0,42320.0,0.01166068]
[1644669679954,0.00073977,42323.0,42320.0,0.01166068]
[1644669680352,0.00025435,42323.0,42320.0,0.01166068]
[1644669680556,0.00409676,42324.0,42320.0,0.01166068]
[1644669680801,0.00409676,42324.0,42320.0,0.30820466]
[1644669681000,0.00023107,42324.0,42320.0,0.39649466]
[1644669681202,0.00023107,42324.0,42323.0,0.05]
[1644669681606,0.00025435,42326.0,42323.0,0.05]
[1644669681801,0.00025435,42338.0,42323.0,0.05]
[1644669682106,0.0101,42339.0,42333.0,0.07021064]
[1644669682305,0.00025435,42338.0,42333.0,0.07021064]
[1644669682504,0.01025435,42339.0,42333.0,0.07021064]
[1644669682703,0.00025435,42338.0,42333.0,0.07021064]
[1644669682903,0.00027264,42338.0,42333.0,0.07021064]
[1644669683104,0.00027264,42338.0,42329.0,0.32921186]
[1644669683105,0.00052699,42338.0,42337.0,0.18913615]
[1644669683304,0.00052699,42338.0,42329.0,0.18978686]
[1644669683305,0.00027264,42338.0,42329.0,0.18978686]
[1644669683504,0.00052699,42338.0,42329.0,0.18978686]
[1644669683704,0.00027264,42338.0,42329.0,0.18978686]
[1644669683908,0.00025435,42338.0,42331.0,0.333529]
[1644669684108,0.00027264,42336.0,42332.0,0.333529]
[1644669684307,0.12,42346.0,42334.0,0.6]
[1644669684952,0.12,42346.0,42339.0,0.19525863]
[1644669685149,0.1,42346.0,42339.0,0.19525863]
[1644669685350,0.05578483,42347.0,42339.0,0.19525863]
[1644669685750,0.10578483,42347.0,42339.0,0.19525863]
[1644669686152,0.1,42347.0,42339.0,0.19525863]
[1644669686550,0.05,42347.0,42339.0,0.19525863]
[1644669687753,0.03027073,42343.0,42339.0,0.19525863]
[1644669688803,0.03,42343.0,42341.0,0.00280864]
[1644669689103,11.03048788,42343.0,42342.0,0.333529]
[1644669689304,11.08048788,42343.0,42342.0,0.333529]
[1644669689506,11.08058788,42343.0,42342.0,0.333529]
[1644669689905,11.0801,42343.0,42342.0,0.333529]
[1644669693952,11.0801,42343.0,42342.0,0.33505926]
[1644669704998,11.08,42343.0,42342.0,0.33505926]
[1644669706398,11.2273,42343.0,42342.0,0.33505926]
[1644669707252,11.2273,42343.0,42342.0,0.00153026]
[1644669708055,11.8186,42343.0,42342.0,0.00153026]
[1644669708453,11.8186,42343.0,42342.0,0.33505926]
[1644669708854,11.8186,42343.0,42342.0,0.00153026]
[1644669709454,12.07428129,42343.0,42342.0,0.00153026]
[1644669710456,12.07428129,42343.0,42318.0,0.13527618]
[1644669710457,12.17428129,42343.0,42318.0,0.13527618]
[1644669710655,12.17428129,42343.0,42322.0,0.4759]
[1644669710656,0.5913,42336.0,42322.0,0.4759]
[1644669710909,0.36090428,42335.0,42322.0,0.4759]
[1644669711108,0.40840428,42335.0,42322.0,0.4759]
[1644669711405,0.42477634,42334.0,42322.0,0.4759]
[1644669711608,0.0473,42333.0,42322.0,0.4759]
[1644669711806,0.2757475,42332.0,42320.0,0.00195227]
[1644669712005,0.5913,42330.0,42320.0,0.00195227]
[1644669712205,0.38742325,42329.0,42320.0,0.00195227]
[1644669712405,0.48742325,42329.0,42320.0,0.00195227]
[1644669712608,0.4876749,42329.0,42320.0,0.00195227]
[1644669712807,0.4876749,42329.0,42316.0,0.31634856]
[1644669713012,0.4876749,42329.0,42316.0,0.11524041]
[1644669713013,0.5913,42325.0,42316.0,0.11524041]
[1644669713307,0.39852448,42324.0,42316.0,0.00244041]
[1644669713707,0.49852448,42324.0,42316.0,0.00244041]
[1644669713908,0.059113,42322.0,42313.0,0.26626364]
[1644669714106,0.059113,42322.0,42316.0,0.00048805]
[1644669714107,0.32567583,42321.0,42316.0,0.00048805]
[1644669714308,0.47567583,42321.0,42316.0,0.00048805]
[1644669715157,0.47567583,42321.0,42309.0,0.18568382]
[1644669715357,0.47567583,42321.0,42316.0,0.00048804]
[1644669716361,0.47567583,42321.0,42312.0,0.23721115]
[1644669716560,0.47567583,42321.0,42316.0,0.00048804]
[1644669717562,0.47567583,42321.0,42307.0,0.7873]
[1644669717563,0.5913,42317.0,42307.0,0.7873]
[1644669717762,0.35258169,42316.0,42307.0,0.3971]
[1644669717962,0.35258169,42316.0,42310.0,0.00195245]
[1644669718163,0.40258169,42316.0,42310.0,0.00195245]
[1644669718603,0.40258169,42316.0,42311.0,0.00149966]
[1644669718903,0.40258169,42316.0,42311.0,0.00198773]
[1644669719302,0.50258169,42316.0,42311.0,0.00198773]
[1644669719516,0.5913,42312.0,42311.0,0.00198773]
[1644669719702,1.00859527,42312.0,42311.0,0.00198773]
[1644669719901,1.10859527,42312.0,42311.0,0.00149966]
[1644669720106,0.38808351,42320.0,42312.0,0.45]
[1644669720107,0.1,42317.0,42312.0,0.45]
[1644669720306,0.12361819,42320.0,42315.0,0.0872995]
[1644669720307,0.0473,42319.0,42315.0,0.0872995]
[1644669720504,0.00111819,42320.0,42316.0,0.333529]
[1644669720904,0.00111819,42320.0,42317.0,0.333529]
[1644669721105,0.00111819,42320.0,42318.0,0.23156925]
[1644669722075,0.00111819,42320.0,42318.0,0.30323334]
[1644669723365,0.00111819,42320.0,42319.0,0.27656115]
[1644669723568,0.00111819,42320.0,42319.0,0.3]
[1644669723869,0.387,42338.0,42321.0,0.333529]
[1644669723870,0.04765165,42336.0,42321.0,0.333529]
[1644669724070,0.04765165,42336.0,42322.0,0.3]
[1644669724071,0.00025165,42336.0,42322.0,0.3]
[1644669724268,0.00025165,42337.0,42328.0,0.18910995]
[1644669724468,0.00048734,42338.0,42328.0,0.18910995]
[1644669724667,0.00025165,42337.0,42331.0,0.07838199]
[1644669724866,0.00025165,42339.0,42331.0,0.07838199]
[1644669725068,0.00048743,42338.0,42329.0,0.25715183]
[1644669725901,0.00025165,42339.0,42335.0,0.26104826]
[1644669726100,0.00588483,42342.0,42335.0,0.26104826]
[1644669726101,0.00025165,42340.0,42335.0,0.26104826]
[1644669726302,0.00048743,42338.0,42335.0,0.26104826]
[1644669727204,0.00025165,42341.0,42335.0,0.26104826]
[1644669727403,0.00048745,42339.0,42335.0,0.26104826]
[1644669727602,0.00048745,42339.0,42336.0,0.333529]
[1644669727803,0.00048745,42339.0,42335.0,0.26104826]
[1644669728302,0.00025165,42341.0,42335.0,0.26104826]
[1644669728502,0.00613648,42342.0,42335.0,0.26104826]
[1644669728702,0.00048744,42339.0,42335.0,0.26104826]
[1644669729553,0.00025165,42339.0,42335.0,0.26104826]
[1644669729751,0.00048744,42339.0,42335.0,0.26104826]
[1644669730150,0.00073909,42339.0,42335.0,0.26104826]
[1644669730349,0.00048744,42339.0,42335.0,0.26104826]
[1644669730751,0.00025165,42339.0,42335.0,0.26104826]
[1644669730950,0.00048744,42339.0,42335.0,0.26104826]
[1644669731351,0.00073909,42339.0,42335.0,0.26104826]
[1644669731655,0.00048744,42339.0,42335.0,0.26104826]
[1644669732051,0.00025165,42341.0,42335.0,0.26104826]
[1644669732253,0.00048744,42339.0,42336.0,0.333529]
[1644669732752,0.00048744,42339.0,42335.0,0.26104826]
[1644669732953,0.00048744,42339.0,42336.0,0.67426513]
[1644669733154,0.00035165,42342.0,42338.0,0.333529]
[1644669733409,0.00035165,42342.0,42339.0,0.61647583]
[1644669733410,0.00025165,42340.0,42339.0,0.61647583]
[1644669733610,0.00035165,42342.0,42340.0,0.333529]
[1644669738948,0.00035165,42342.0,42330.0,0.34791302]
[1644669739148,0.00035165,42342.0,42331.0,0.333529]
[1644669739750,0.00035165,42342.0,42336.0,0.333529]
[1644669740649,0.00048969,42341.0,42336.0,0.333529]
[1644669741707,0.00035165,42342.0,42336.0,0.333529]
[1644669741911,0.00048969,42341.0,42336.0,0.333529]
[1644669742907,0.00035165,42342.0,42336.0,0.333529]
[1644669743106,0.00048969,42341.0,42336.0,0.333529]
[1644669743509,0.00048969,42341.0,42338.0,0.333529]
[1644669744011,0.00035165,42342.0,42338.0,0.333529]
[1644669744207,0.02035165,42342.0,42338.0,0.333529]
[1644669744412,0.02084133,42342.0,42338.0,0.333529]
[1644669745052,0.02084133,42342.0,42338.0,0.33345406]
[1644669745251,0.02035165,42342.0,42338.0,0.33345406]
[1644669745449,0.02084133,42342.0,42338.0,0.33345406]
[1644669746050,0.02084133,42342.0,42338.0,0.39251006]
[1644669746450,0.02035165,42342.0,42338.0,0.39251006]
[1644669746852,0.02084133,42342.0,42338.0,0.39251006]
[1644669747650,0.02035165,42342.0,42338.0,0.39251006]
[1644669747854,0.02084133,42342.0,42338.0,0.39251006]
[1644669748303,0.02084133,42342.0,42341.0,0.333529]
[1644669748501,0.02084133,42342.0,42341.0,0.6128943]
[1644669748502,0.02058968,42342.0,42341.0,0.6128943]
[1644669748801,0.0201,42342.0,42341.0,0.6128943]
[1644669749400,0.0201,42342.0,42341.0,0.333529]
[1644669752058,0.0201,42342.0,42341.0,0.42046351]
[1644669753256,0.0201,42342.0,42341.0,0.70806368]
[1644669753455,0.0201,42342.0,42341.0,0.62112917]
[1644669753856,10.56389948,42343.0,42341.0,0.62112917]
[1644669754054,10.56415113,42343.0,42341.0,0.62112917]
[1644669754254,10.56415113,42343.0,42342.0,0.48397775]
[1644669754456,10.56389948,42343.0,42342.0,1.0935411]
[1644669754655,10.56389948,42343.0,42342.0,1.17589104]
[1644669755256,10.61389948,42343.0,42342.0,1.17589104]
[1644669755657,10.61389948,42343.0,42342.0,0.89954569]
[1644669756300,10.61139948,42343.0,42342.0,0.89954569]
[1644669756898,10.61139948,42343.0,42342.0,0.6373776]
[1644669758605,0.7495,42342.0,42339.0,0.333207]
[1644669758806,0.7495,42342.0,42338.0,0.02]
[1644669758807,0.680507,42341.0,42338.0,0.02]
[1644669759001,0.5913,42339.0,42338.0,0.02]
[1644669759202,0.974607,42339.0,42338.0,0.02]
[1644669759403,1.171907,42339.0,42338.0,0.02]
[1644669759667,1.93065117,42339.0,42338.0,0.02]
[1644669760065,0.75,42338.0,42325.0,0.08596936]
[1644669760260,0.75,42338.0,42322.0,0.2434295]
[1644669760261,0.5913,42326.0,42322.0,0.2434295]
[1644669760463,0.0474,42325.0,42322.0,0.2434295]
[1644669760662,0.0473,42324.0,42322.0,0.2434295]
[1644669760863,0.0001,42326.0,42323.0,0.333207]
[1644669761063,0.0473,42325.0,42323.0,0.333207]
[1644669761263,0.0472,42325.0,42322.0,0.2434295]
[1644669761466,0.0472,42325.0,42324.0,0.25516791]
[1644669763507,0.0472,42325.0,42324.0,0.33061608]
[1644669764407,0.0472,42325.0,42324.0,0.66382308]
[1644669764808,0.0472,42325.0,42324.0,0.33061608]
[1644669765813,0.0472,42325.0,42324.0,0.66382308]
[1644669766415,0.0472,42325.0,42324.0,0.33061608]
[1644669766612,0.0472,42325.0,42324.0,0.66382308]
[1644669766812,0.0472,42325.0,42324.0,0.33061608]
[1644669767057,0.0472,42325.0,42324.0,0.25516791]
[1644669768655,0.0001,42326.0,42324.0,0.25516791]
[1644669768855,0.0473,42325.0,42324.0,0.25516791]
[1644669772904,0.0473,42325.0,42320.0,0.00223638]
[1644669772905,0.333207,42324.0,42320.0,0.00223638]
[1644669773111,0.0473,42323.0,42320.0,0.00223638]
[1644669773404,0.2680693,42322.0,42320.0,0.00223638]
[1644669773605,0.380507,42321.0,42320.0,0.00223638]
[1644669773805,1.55199323,42321.0,42320.0,0.00223638]
[1644669774007,1.36131388,42321.0,42320.0,0.00223638]
[1644669774307,1.00578492,42321.0,42320.0,0.00223638]
[1644669774752,1.33899192,42321.0,42320.0,0.00223638]
[1644669774952,1.00578492,42321.0,42320.0,0.00223638]
[1644669775152,1.19288901,42321.0,42320.0,0.00223638]
[1644669777355,0.92570409,42321.0,42320.0,0.00223638]
[1644669780002,0.7386,42321.0,42320.0,0.00223638]
[1644669781805,1.071807,42321.0,42320.0,0.00223638]
[1644669782252,1.3578651,42321.0,42320.0,0.00212819]
[1644669782452,1.0246581,42321.0,42320.0,0.00212819]
[1644669783253,1.3579651,42321.0,42320.0,0.00212819]
[1644669783452,1.0247581,42321.0,42320.0,0.00212819]
[1644669783954,0.7387,42321.0,42320.0,0.00212819]
[1644669785052,1.071907,42321.0,42320.0,0.00212819]
[1644669785454,0.7387,42321.0,42320.0,0.00212819]
[1644669787806,0.14955614,42321.0,42320.0,0.00212819]
[1644669788010,0.0001,42321.0,42320.0,0.33533519]
[1644669788306,0.0473,42326.0,42320.0,0.33533519]
[1644669788505,0.0473,42326.0,42322.0,0.333207]
[1644669788907,0.0473,42326.0,42324.0,0.07338124]
[1644669789108,0.0473,42326.0,42321.0,0.25843948]
[1644669790353,0.0473,42326.0,42325.0,0.21310354]
[1644669790555,0.0474,42332.0,42325.0,0.21310354]
[1644669790759,0.0001,42332.0,42325.0,0.21310354]
[1644669790956,0.0001,42332.0,42326.0,0.333207]
[1644669791154,0.0001,42332.0,42325.0,0.21310354]
[1644669791358,0.0001,42336.0,42325.0,0.21310354]
[1644669791555,0.0001,42336.0,42332.0,0.19791483]
[1644669791755,0.0473,42335.0,42332.0,0.19791483]
[1644669792057,0.0473,42335.0,42324.0,0.07150283]
[1644669792255,0.27207357,42334.0,42324.0,0.07150283]
[1644669792557,0.0474,42333.0,42324.0,0.07150283]
[1644669792754,0.0473,42332.0,42324.0,0.07150283]
[1644669793154,0.0473,42332.0,42331.0,0.26099565]
[1644669793408,0.0473,42332.0,42331.0,0.23489609]
[1644669793810,0.0473,42332.0,42331.0,0.333207]
[1644669794208,0.0474,42332.0,42331.0,0.333207]
[1644669794408,0.0473,42332.0,42331.0,0.333207]
[1644669795208,0.0474,42332.0,42331.0,0.333207]
[1644669795410,0.0473,42332.0,42331.0,0.333207]
[1644669798755,0.0001,42333.0,42331.0,0.333207]
[1644669798958,0.0001,42333.0,42332.0,0.333207]
[1644669817909,11.0973,42334.0,42333.0,0.00014528]
[1644669823157,11.0974,42334.0,42333.0,0.00014528]
[1644669826808,11.1974,42334.0,42333.0,0.00014528]
[1644669830054,11.0501,42334.0,42333.0,0.00014528]
[1644669830454,11.0001,42334.0,42333.0,0.00014528]
[1644669831805,11.0501,42334.0,42333.0,0.00014528]
[1644669835255,11.24986574,42334.0,42333.0,0.00014528]
[1644669836458,11.2995977,42334.0,42333.0,0.00014528]
[1644669836657,11.0501,42334.0,42333.0,0.00014528]
[1644669837258,11.2995977,42334.0,42333.0,0.00014528]
[1644669837662,11.0501,42334.0,42333.0,0.00014528]
[1644669837861,11.2995977,42334.0,42333.0,0.00014528]
[1644669838315,11.49679724,42334.0,42333.0,0.00014528]
[1644669838515,11.1974,42334.0,42333.0,0.00014528]
[1644669838713,11.1974,42334.0,42333.0,3.683e-05]
[1644669840118,11.1974,42334.0,42333.0,0.00305506]
[1644669842256,11.1974,42334.0,42333.0,0.33626206]
[1644669842657,11.1974,42334.0,42333.0,0.00305506]
[1644669843056,11.1974,42334.0,42333.0,0.33626206]
[1644669843460,11.1974,42334.0,42333.0,0.00305506]
[1644669844260,11.580607,42334.0,42333.0,0.00305506]
[1644669844460,11.59669679,42334.0,42333.0,0.00305506]
[1644669844861,11.54669679,42334.0,42333.0,0.00305506]
[1644669845361,11.1974,42334.0,42333.0,0.00305506]
[1644669846908,11.1974,42334.0,42333.0,0.00157283]
[1644669849663,11.1974,42334.0,42333.0,0.00295624]
[1644669849863,11.195138,42334.0,42333.0,0.00295624]
[1644669850064,11.4947537,42334.0,42333.0,0.00295624]
[1644669850564,11.195138,42334.0,42333.0,0.00295624]
[1644669851063,11.4947537,42334.0,42333.0,0.00295624]
[1644669851664,11.195138,42334.0,42333.0,0.00295624]
[1644669852263,11.4947537,42334.0,42333.0,0.00295624]
[1644669856515,11.4947537,42334.0,42333.0,0.33616324]
[1644669856714,11.4947537,42334.0,42333.0,0.00295624]
[1644669857357,9.73006638,42334.0,42333.0,0.00295624]
[1644669857662,9.73006638,42334.0,42333.0,0.38616324]
[1644669857663,9.43045068,42334.0,42333.0,0.38616324]
[1644669857857,9.43045068,42334.0,42333.0,0.45318324]
[1644669857858,8.89417587,42334.0,42333.0,0.45318324]
[1644669858258,8.89417587,42334.0,42333.0,0.68256398]
[1644669859055,8.89417587,42334.0,42333.0,0.72986398]
[1644669860159,8.89417587,42334.0,42333.0,0.73118902]
[1644669860659,8.89417587,42334.0,42333.0,1.00817765]
[1644669861110,8.89417587,42334.0,42333.0,0.73118902]
[1644669863013,8.89417587,42334.0,42333.0,0.66416902]
[1644669863612,8.89417587,42334.0,42333.0,0.94752377]
[1644669864212,8.89417587,42334.0,42333.0,0.66416902]
[1644669864959,8.89417587,42334.0,42333.0,0.70961616]
[1644669865356,8.89417587,42334.0,42333.0,0.43478828]
[1644669865557,8.89417587,42334.0,42333.0,0.43207983]
[1644669870709,8.89417587,42334.0,42333.0,0.38207983]
[1644669870910,8.89417587,42334.0,42333.0,0.43207983]
[1644669871309,8.89417587,42334.0,42333.0,0.48207983]
[1644669871612,8.89417587,42334.0,42333.0,0.76980384]
[1644669872285,8.89417587,42334.0,42333.0,0.86980384]
[1644669872684,8.89417587,42334.0,42333.0,0.89078153]
[1644669872984,8.89417587,42334.0,42333.0,0.70313784]
[1644669873191,8.89417587,42334.0,42333.0,0.89078153]
[1644669873385,8.89417587,42334.0,42333.0,0.70313784]
[1644669873588,8.89417587,42334.0,42333.0,0.89078153]
[1644669873785,8.89417587,42334.0,42333.0,0.70313784]
[1644669873988,8.89417587,42334.0,42333.0,0.89078153]
[1644669874285,8.22400546,42334.0,42333.0,0.75313784]
[1644669875588,8.22400546,42334.0,42333.0,0.75454178]
[1644669877414,8.22400546,42334.0,42333.0,0.46681777]
[1644669877617,8.22400546,42334.0,42333.0,0.74969868]
[1644669878014,8.22400546,42334.0,42333.0,0.93734237]
[1644669878214,8.22400546,42334.0,42333.0,0.74969868]
[1644669879760,8.22400546,42334.0,42333.0,0.46681777]
[1644669880162,8.22400546,42334.0,42333.0,0.41951777]
[1644669882660,8.22400546,42334.0,42333.0,0.21951777]
[1644669887856,0.20684871,42326.0,42324.0,0.28745856]
[1644669888057,0.25684871,42326.0,42325.0,0.333162]
[1644669888256,0.25684871,42326.0,42325.0,0.0035697]
[1644669888656,0.25684871,42326.0,42325.0,0.0535697]
[1644669888859,0.48674798,42326.0,42325.0,0.0535697]
[1644669889056,0.48674798,42326.0,42325.0,0.0035697]
[1644669892106,0.25684871,42326.0,42325.0,0.0035697]
[1644669893207,0.25694871,42326.0,42325.0,0.0035697]
[1644669893608,0.25694871,42326.0,42325.0,0.3368697]
[1644669893816,0.25694871,42326.0,42325.0,0.0035697]
[1644669895263,0.2581665,42326.0,42325.0,0.00632169]
[1644669896160,0.2581665,42326.0,42325.0,0.33962169]
[1644669896360,0.2581665,42326.0,42325.0,0.00632169]
[1644669896559,0.2581665,42326.0,42325.0,0.33962169]
[1644669896762,0.2581665,42326.0,42325.0,0.00632169]
[1644669898813,0.2581665,42326.0,42325.0,0.00654025]
[1644669900614,0.2581665,42326.0,42325.0,0.33984025]
[1644669900813,0.2581665,42326.0,42325.0,0.00632169]
[1644669901015,0.2581665,42326.0,42325.0,0.00654025]
[1644669907210,0.2581665,42326.0,42325.0,0.2864075]
[1644669907612,0.2081665,42326.0,42325.0,0.2864075]
[1644669907810,0.2081665,42326.0,42325.0,0.3364075]
[1644669908011,0.20694871,42326.0,42325.0,0.87060199]
[1644669908210,0.20694871,42326.0,42325.0,0.97060199]
[1644669908611,0.20694871,42326.0,42325.0,0.76948894]
[1644669908810,0.20694871,42326.0,42325.0,0.7697075]
[1644669909011,0.20694871,42326.0,42325.0,0.95102384]
[1644669909210,0.20694871,42326.0,42325.0,0.94776564]
[1644669909411,0.20694871,42326.0,42325.0,1.05005545]
[1644669909660,0.20694871,42326.0,42325.0,0.97701447]
[1644669909858,0.25694871,42326.0,42325.0,0.41162055]
[1644669910063,0.25694871,42326.0,42325.0,0.39233222]
[1644669910259,0.25694871,42326.0,42325.0,0.51183984]
[1644669910459,0.2581665,42326.0,42325.0,0.51184916]
[1644669910961,0.2581665,42326.0,42325.0,0.51184887]
[1644669911358,0.2581665,42326.0,42325.0,0.31099839]
[1644669911558,0.2581665,42326.0,42325.0,0.64429839]
[1644669911760,0.2581665,42326.0,42325.0,0.41184887]
[1644669912558,0.2581665,42326.0,42325.0,0.74441571]
[1644669912760,0.2581665,42326.0,42325.0,0.41111571]
[1644669913160,0.2581665,42326.0,42325.0,0.74441571]
[1644669913407,0.2581665,42326.0,42325.0,0.41111571]
[1644669913610,0.2581665,42326.0,42325.0,0.74441571]
[1644669913907,0.2581665,42326.0,42325.0,0.41111571]
[1644669914310,0.2581665,42326.0,42325.0,1.02086394]
[1644669914706,0.2581665,42326.0,42325.0,0.74441571]
[1644669914908,0.2581665,42326.0,42325.0,0.74419937]
[1644669915107,0.2581665,42326.0,42325.0,0.67263337]
[1644669915310,0.2581665,42326.0,42325.0,0.50282385]
[1644669915610,0.2581665,42326.0,42325.0,0.50350429]
[1644669915809,0.2581665,42326.0,42325.0,1.01817486]
[1644669916013,0.2581665,42326.0,42325.0,0.68487486]
[1644669916212,0.2581665,42326.0,42325.0,1.36929298]
[1644669916912,0.2581665,42326.0,42325.0,0.83217486]
[1644669917557,0.2581665,42326.0,42325.0,1.03374431]
[1644669917758,0.2581665,42326.0,42325.0,1.33508605]
[1644669917960,0.20694871,42326.0,42325.0,1.36704431]
[1644669918960,0.20694871,42326.0,42325.0,1.66838605]
[1644669919160,0.25694871,42326.0,42325.0,1.72744505]
[1644669919361,0.20694871,42326.0,42325.0,1.39414505]
[1644669919560,0.20694871,42326.0,42325.0,1.42610331]
[1644669919960,0.20694871,42326.0,42325.0,1.42588475]
[1644669920161,0.20694871,42326.0,42325.0,1.44948475]
[1644669920361,0.20847095,42326.0,42325.0,2.21119394]
[1644669920562,0.20694871,42326.0,42325.0,1.52632857]
[1644669920810,0.20694871,42326.0,42325.0,1.85962857]
[1644669921012,0.20694871,42326.0,42325.0,2.05962857]
[1644669921214,0.20694871,42326.0,42325.0,2.06571785]
[1644669922313,8.22390546,42334.0,42328.0,0.2]
[1644669922513,8.22390546,42334.0,42333.0,0.33238141]
[1644669922715,8.22390546,42334.0,42333.0,0.76298141]
[1644669922915,8.22390546,42334.0,42333.0,1.01743955]
[1644669923115,8.22390546,42334.0,42333.0,1.19881012]
[1644669924117,8.27390546,42334.0,42333.0,1.19881012]
[1644669924314,8.27390546,42334.0,42333.0,0.86551012]
[1644669924760,8.27390546,42334.0,42333.0,1.14052451]
[1644669925057,8.27390546,42334.0,42333.0,0.86551012]
[1644669925457,8.27390546,42334.0,42333.0,1.19881012]
[1644669925659,8.27390546,42334.0,42333.0,1.12705812]
[1644669925858,8.27390546,42334.0,42333.0,1.19881012]
[1644669926258,8.27390546,42334.0,42333.0,1.09881012]
[1644669926859,8.27390546,42334.0,42333.0,0.76551012]
[1644669927060,8.27390546,42334.0,42333.0,3.70158692]
[1644669927257,8.27390546,42334.0,42333.0,1.03983696]
[1644669927461,8.27400546,42334.0,42333.0,1.08983696]
[1644669927658,8.27400546,42334.0,42333.0,1.11634786]
[1644669927860,7.60381426,42334.0,42333.0,1.26827729]
[1644669929111,7.65381426,42334.0,42333.0,1.26827729]
[1644669929308,7.65381426,42334.0,42333.0,0.88497729]
[1644669929711,7.65381426,42334.0,42333.0,1.21827729]
[1644669930009,7.65381426,42334.0,42333.0,0.88497729]
[1644669930210,7.65381426,42334.0,42333.0,0.88632816]
[1644669930411,7.65381426,42334.0,42333.0,1.16271494]
[1644669930812,7.65381426,42334.0,42333.0,0.9618772]
[1644669931616,7.65381426,42334.0,42333.0,0.68689147]
[1644669932073,7.65381426,42334.0,42333.0,0.37623032]
[1644669932273,7.65381426,42334.0,42333.0,0.22623032]
[1644669932872,7.65381426,42334.0,42333.0,0.15721006]
[1644669933473,7.65381426,42334.0,42333.0,0.49051006]
[1644669933669,7.65381426,42334.0,42333.0,0.15721006]
[1644669936714,7.65381426,42334.0,42333.0,0.20721006]
[1644669936916,7.65381426,42334.0,42333.0,0.15721006]
[1644669937115,7.65381426,42334.0,42333.0,0.49051006]
[1644669937314,7.65381426,42334.0,42333.0,0.15721006]
[1644669938313,7.65381426,42334.0,42333.0,0.49051006]
[1644669938515,7.65381426,42334.0,42333.0,0.15721006]
[1644669939113,7.65381426,42334.0,42333.0,0.20721006]
[1644669939759,7.65381426,42334.0,42333.0,0.4080478]
[1644669939959,7.65381426,42334.0,42333.0,0.20721006]
[1644669940158,7.65381426,42334.0,42333.0,0.8413478]
[1644669940359,7.65381426,42334.0,42333.0,0.5080478]
[1644669940562,7.65381426,42334.0,42333.0,0.68916167]
[1644669940761,7.65381426,42334.0,42333.0,0.30721006]
[1644669942165,7.65381426,42334.0,42333.0,0.64051006]
[1644669942361,7.65381426,42334.0,42333.0,0.30721006]
[1644669943162,7.65381426,42334.0,42333.0,0.64051006]
[1644669943407,7.65381426,42334.0,42333.0,0.30721006]
[1644669944008,7.65381426,42334.0,42333.0,0.20721006]
[1644669944907,7.65381426,42334.0,42333.0,0.54051006]
[1644669945107,7.65381426,42334.0,42333.0,0.46875806]
[1644669945306,7.65381426,42334.0,42333.0,0.30721006]
[1644669945909,7.65394903,42334.0,42333.0,0.30733116]
[1644669947463,7.65394903,42334.0,42333.0,0.20733116]
[1644669947665,7.65394903,42334.0,42333.0,0.30733116]
[1644669947862,7.11778013,42334.0,42333.0,0.56887916]
[1644669949065,7.11778013,42334.0,42333.0,0.7697169]
[1644669949267,7.11778013,42334.0,42333.0,0.56887916]
[1644669949268,7.16778013,42334.0,42333.0,0.56887916]
[1644669949467,7.16778013,42334.0,42333.0,0.30733116]
[1644669951108,7.16778013,42334.0,42333.0,0.54063116]
[1644669951307,7.1679149,42334.0,42333.0,0.56887916]
[1644669951510,7.1679149,42334.0,42333.0,0.64063116]
[1644669951910,7.1679149,42334.0,42333.0,0.30733116]
[1644669952107,7.1679149,42334.0,42333.0,0.64063116]
[1644669952307,7.1679149,42334.0,42333.0,0.30733116]
[1644669952513,7.1679149,42334.0,42333.0,0.64063116]
[1644669952708,7.1679149,42334.0,42333.0,0.54063116]
[1644669952909,7.1679149,42334.0,42333.0,0.64063116]
[1644669953209,7.1679149,42334.0,42333.0,0.5081689]
[1644669953609,7.1679149,42334.0,42333.0,0.3581689]
[1644669953810,7.1679149,42334.0,42333.0,0.15733116]
[1644669955661,7.16778013,42334.0,42333.0,0.15721006]
[1644669957262,7.16778013,42334.0,42333.0,0.49051006]
[1644669957464,7.16778013,42334.0,42333.0,0.15721006]
[1644669963369,7.16778013,42334.0,42333.0,0.49051006]
[1644669963569,7.16778013,42334.0,42333.0,0.15721006]
[1644669963772,7.21508013,42334.0,42333.0,0.15721006]
[1644669963971,7.26508013,42334.0,42333.0,0.15721006]
[1644669964170,7.26508013,42334.0,42332.0,0.3333]
[1644669964171,0.75,42333.0,42332.0,0.261552]
[1644669964368,0.75,42333.0,42326.0,0.00021856]
[1644669964369,1.0974,42333.0,42327.0,0.33348156]
[1644669964568,0.0001,42332.0,42327.0,0.333263]
[1644669964768,0.34709809,42331.0,42327.0,0.333263]
[1644669965171,0.0001,42330.0,42327.0,0.333263]
[1644669965368,0.0473,42329.0,42327.0,0.333263]
[1644669965825,0.05,42328.0,42327.0,0.333263]
[1644669966115,0.30145542,42328.0,42327.0,0.333263]
[1644669966315,0.35145542,42328.0,42327.0,0.333263]